bitfinex/quotes_BTCUSD_20241205
["timestamp","ask_amount","ask_price","bid_price","bid_amount"]
[1733368738032,1.14991849,103120.0,103110.0,0.000865]
[1733368738247,1.34646913,103120.0,103110.0,0.000865]
[1733368738490,1.24646913,103120.0,103110.0,0.000865]
[1733368738737,1.34646913,103120.0,103110.0,0.000865]
[1733368738962,0.29082259,103120.0,103110.0,0.000865]
[1733368739410,0.71289308,103120.0,103110.0,0.000865]
[1733368739632,0.29082259,103120.0,103110.0,0.000865]
[1733368739857,0.48478959,103120.0,103060.0,0.194047]
[1733368740094,0.193981,103110.0,103090.0,0.06151214]
[1733368740342,0.5339,103100.0,103060.0,0.388096]
[1733368740602,0.5339,103100.0,103070.0,0.06245309]
[1733368740824,0.5339,103100.0,103070.0,0.25648209]
[1733368741056,0.5339,103100.0,103080.0,0.06221782]
[1733368741538,0.727899,103100.0,103080.0,0.06221782]
[1733368741749,0.921898,103100.0,103080.0,0.06221782]
[1733368741980,0.5339,103100.0,103080.0,0.06221782]
[1733368742215,0.727899,103100.0,103080.0,0.06221782]
[1733368743133,0.9219,103100.0,103080.0,0.06221782]
[1733368743360,0.8719,103100.0,103050.0,0.194066]
[1733368743618,0.4839,103080.0,103060.0,0.06268839]
[1733368744056,0.4839,103080.0,103060.0,0.45079339]
[1733368744279,0.4839,103080.0,103060.0,0.25673439]
[1733368744481,0.4839,103080.0,103060.0,0.06268839]
[1733368744941,0.48407608,103080.0,103060.0,0.06268839]
[1733368745171,0.4839,103070.0,103060.0,0.06268839]
[1733368745410,0.57767537,103070.0,103060.0,0.06268839]
[1733368745645,0.194082,103050.0,103020.0,0.0052044]
[1733368745872,0.4839,103050.0,103030.0,0.06410065]
[1733368746105,0.728012,103040.0,103020.0,0.0052044]
[1733368746320,0.728012,103040.0,103030.0,0.0643361]
[1733368746321,0.5339,103040.0,103030.0,0.0643361]
[1733368746584,0.62767537,103040.0,103030.0,0.2487481]
[1733368747033,0.62767537,103040.0,103030.0,0.0643361]
[1733368747272,0.09377537,103040.0,103030.0,0.2487481]
[1733368747484,0.09395132,103040.0,103030.0,0.41102675]
[1733368747742,0.09395132,103040.0,103030.0,0.51102675]
[1733368747951,0.09395132,103040.0,103030.0,0.2487481]
[1733368748171,0.09395132,103040.0,103030.0,0.3487481]
[1733368748419,0.09395132,103040.0,103030.0,0.2487481]
[1733368748860,0.09370827,103040.0,103030.0,0.2487481]
[1733368749067,0.09370827,103040.0,103030.0,0.33878675]
[1733368749929,0.09370827,103040.0,103030.0,0.2487481]
[1733368751745,0.092766,103040.0,103030.0,0.2487481]
[1733368752197,0.092766,103040.0,103020.0,0.0052044]
[1733368752408,0.286867,103040.0,103020.0,0.0052044]
[1733368752649,0.19427695,103040.0,103020.0,0.0052044]
[1733368752910,0.04717595,103040.0,103020.0,0.0052044]
[1733368753140,0.00017595,103040.0,103030.0,0.24921907]
[1733368753352,0.09501896,103040.0,103030.0,0.06480707]
[1733368753560,0.09501896,103040.0,103020.0,0.0052044]
[1733368753765,0.5339,103030.0,103020.0,0.0052044]
[1733368753988,0.62892051,103030.0,103020.0,0.0052044]
[1733368754422,0.09502051,103030.0,103020.0,0.0052044]
[1733368754651,0.32897452,103030.0,103020.0,0.0052044]
[1733368755122,0.13877319,103030.0,103020.0,0.0052044]
[1733368755369,0.28913851,103030.0,103020.0,0.0052044]
[1733368755580,0.09502051,103030.0,103020.0,0.0052044]
[1733368755787,0.28913851,103030.0,103020.0,0.0052044]
[1733368755996,0.33523851,103030.0,103020.0,0.0052044]
[1733368756200,0.14112051,103030.0,103020.0,0.0052044]
[1733368756418,0.09502051,103030.0,103020.0,0.07024699]
[1733368757337,0.09502051,103030.0,103020.0,0.0052044]
[1733368757801,0.09502051,103030.0,103020.0,0.07024699]
[1733368758081,0.11227016,103030.0,103020.0,0.07024699]
[1733368758297,0.09502051,103030.0,103020.0,0.0052044]
[1733368758505,0.09502051,103030.0,103020.0,0.07024699]
[1733368758738,0.09502051,103030.0,103020.0,0.24496999]
[1733368759825,0.09502051,103030.0,103020.0,0.07024699]
[1733368760044,0.09502051,103030.0,103020.0,0.24496999]
[1733368760259,0.09502051,103030.0,103020.0,0.07024699]
[1733368760963,0.09704528,103030.0,103020.0,0.0052044]
[1733368761180,0.46813933,103030.0,103020.0,0.0052044]
[1733368761386,0.36846328,103030.0,103020.0,0.0052044]
[1733368761652,0.08467053,103030.0,103020.0,0.34496999]
[1733368761878,0.09712383,103030.0,103020.0,0.13031669]
[1733368762127,0.877943,103070.0,103040.0,0.174686]
[1733368762342,0.6839,103070.0,103050.0,0.06362981]
[1733368762553,0.5339,103060.0,103040.0,0.06362981]
[1733368762763,0.5339,103060.0,103050.0,0.23853722]
[1733368762976,0.63102383,103060.0,103040.0,0.349357]
[1733368763190,0.5339,103060.0,103040.0,0.41322122]
[1733368763402,0.5339,103060.0,103040.0,0.23854322]
[1733368764450,0.5339,103060.0,103050.0,0.174672]
[1733368764666,0.63158311,103060.0,103040.0,0.41323122]
[1733368764874,0.5339,103060.0,103040.0,0.23854322]
[1733368765090,0.5339,103060.0,103040.0,0.06386522]
[1733368765326,0.5339,103060.0,103050.0,0.23853722]
[1733368765582,0.09953333,103060.0,103050.0,0.23853722]
[1733368768053,0.06072133,103060.0,103050.0,0.33853722]
[1733368768255,0.09784419,103060.0,103050.0,0.49925564]
[1733368768678,0.07843819,103060.0,103050.0,0.59925564]
[1733368768892,0.07843819,103060.0,103050.0,0.32143722]
[1733368769323,0.07843819,103060.0,103050.0,0.52143722]
[1733368769516,0.02217355,103060.0,103050.0,0.42143722]
[1733368771498,0.15,103070.0,103060.0,0.22811106]
[1733368771726,0.15,103070.0,103060.0,0.22869847]
[1733368775923,0.0469,103100.0,103090.0,0.155204]
[1733368775924,0.02189999,103100.0,103090.0,0.155204]
[1733368776157,0.02189999,103100.0,103090.0,0.21695136]
[1733368777046,0.02189999,103100.0,103090.0,0.155204]
[1733368778400,0.02189999,103100.0,103090.0,0.21695136]
[1733368778607,0.15,103130.0,103120.0,0.155159]
[1733368778837,0.19658347,103130.0,103120.0,0.21549548]
[1733368780016,0.19676008,103130.0,103120.0,0.21549548]
[1733368780219,0.19676008,103130.0,103120.0,0.30359483]
[1733368780428,0.19676008,103130.0,103120.0,0.21549548]
[1733368781508,0.15017661,103130.0,103120.0,0.21549548]
[1733368781943,0.15017661,103130.0,103120.0,0.2291376]
[1733368782156,0.15017661,103130.0,103120.0,0.4291376]
[1733368782157,6.1e-07,103130.0,103120.0,0.4291376]
[1733368782424,0.00505633,103230.0,103190.0,0.155053]
[1733368782637,0.00017654,103210.0,103200.0,0.21137944]
[1733368782885,0.00017654,103210.0,103190.0,0.155039]
[1733368783110,0.0494,103200.0,103190.0,0.310082]
[1733368785309,0.00017654,103210.0,103190.0,0.52217261]
[1733368785561,0.00017654,103210.0,103200.0,0.21185086]
[1733368785801,5.4e-07,103210.0,103200.0,0.41356616]
[1733368786011,5.4e-07,103210.0,103200.0,0.41185086]
[1733368786257,0.00505633,103230.0,103220.0,0.14532]
[1733368786492,0.00564424,103230.0,103220.0,0.20095947]
[1733368787387,0.00058791,103230.0,103220.0,0.20095947]
[1733368788297,0.00058791,103230.0,103220.0,0.05563947]
[1733368788505,0.32284191,103230.0,103190.0,0.31391915]
[1733368788721,0.12908791,103230.0,103210.0,0.145334]
[1733368788933,0.32282991,103230.0,103210.0,0.0558741]
[1733368789142,1.05048791,103230.0,103190.0,0.145352]
[1733368789352,0.85672991,103230.0,103200.0,0.34703844]
[1733368789564,0.85672991,103230.0,103200.0,0.20169044]
[1733368789782,0.12908791,103230.0,103200.0,0.23638668]
[1733368790041,0.12908791,103230.0,103200.0,0.34702144]
[1733368790246,0.85672991,103230.0,103200.0,0.20168244]
[1733368790463,0.5818,103200.0,103160.0,0.1454]
[1733368790681,0.80973,103190.0,103160.0,0.05704761]
[1733368790908,0.80973,103190.0,103140.0,0.290844]
[1733368790909,0.63573699,103180.0,103140.0,0.290844]
[1733368791133,0.63573699,103180.0,103150.0,0.20411049]
[1733368791389,0.44189999,103190.0,103160.0,0.145391]
[1733368791627,0.63573099,103190.0,103160.0,0.06463966]
[1733368791856,0.82956199,103190.0,103160.0,0.06463966]
[1733368792069,0.44189999,103190.0,103170.0,0.20337583]
[1733368792284,0.0479,103200.0,103190.0,0.145362]
[1733368792488,0.0479,103200.0,103190.0,0.20240961]
[1733368793744,0.0459,103230.0,103200.0,0.145348]
[1733368793986,0.0459,103230.0,103210.0,0.05610875]
[1733368794393,0.239642,103230.0,103210.0,0.05610875]
[1733368794599,0.339642,103230.0,103190.0,0.290706]
[1733368794814,0.533396,103230.0,103200.0,0.05634344]
[1733368795072,0.04648791,103230.0,103200.0,0.20169144]
[1733368795293,0.04648791,103230.0,103200.0,0.34702744]
[1733368795508,0.04648791,103230.0,103190.0,0.01352263]
[1733368795509,0.43990796,103230.0,103190.0,0.15887663]
[1733368795726,0.73567399,103220.0,103190.0,0.06986607]
[1733368795956,0.92944699,103220.0,103190.0,0.06986607]
[1733368796191,1.69378,103210.0,103190.0,0.06986607]
[1733368796447,0.19378,103210.0,103190.0,0.06986607]
[1733368796684,0.92944699,103220.0,103190.0,0.06986607]
[1733368796907,0.92944699,103220.0,103180.0,0.290734]
[1733368796908,0.0468,103200.0,103180.0,0.290734]
[1733368797116,0.0468,103200.0,103170.0,0.145386]
[1733368797339,0.5339,103190.0,103150.0,0.14541]
[1733368797570,0.727729,103190.0,103160.0,0.05822169]
[1733368797826,1.793847,103180.0,103150.0,0.20363169]
[1733368798039,0.0468,103170.0,103150.0,0.05822169]
[1733368798247,0.434513,103170.0,103140.0,0.145423]
[1733368798459,0.434513,103170.0,103140.0,0.20434941]
[1733368798674,0.0468,103170.0,103140.0,0.20452595]
[1733368798895,0.0468,103170.0,103150.0,0.145417]
[1733368799172,0.268973,103160.0,103140.0,0.00017654]
[1733368799382,0.562859,103160.0,103140.0,0.00017654]
[1733368799591,0.368973,103160.0,103140.0,0.00017654]
[1733368799795,1.5,103150.0,103140.0,0.00017654]
[1733368800883,0.5807,103170.0,103140.0,0.05957289]
[1733368801098,0.193829,103190.0,103160.0,0.05892641]
[1733368801099,0.5339,103190.0,103160.0,0.05892641]
[1733368801314,0.5339,103190.0,103140.0,0.00017654]
[1733368801315,0.193892,103150.0,103140.0,0.00017654]
[1733368801821,0.339375,103160.0,103140.0,0.00017654]
[1733368802027,0.339375,103160.0,103150.0,0.20458037]
[1733368802028,0.0455,103160.0,103150.0,0.20458037]
[1733368802713,0.5339,103180.0,103160.0,0.145394]
[1733368802958,0.5339,103170.0,103140.0,0.00017654]
[1733368803190,0.727755,103170.0,103140.0,0.20452595]
[1733368803413,0.5339,103170.0,103140.0,0.34994995]
[1733368803628,0.5339,103150.0,103140.0,0.00017654]
[1733368803858,0.240792,103150.0,103140.0,0.00017654]
[1733368804095,1.840792,103150.0,103140.0,0.00017654]
[1733368804317,2.11656805,103150.0,103140.0,0.00017654]
[1733368804529,0.293929,103130.0,103120.0,0.15]
[1733368804748,0.587843,103140.0,103120.0,0.15017661]
[1733368804959,0.44050505,103130.0,103120.0,0.15017661]
[1733368805449,0.34050505,103130.0,103120.0,0.15017661]
[1733368805691,0.1,103110.0,103080.0,0.145508]
[1733368805902,0.193979,103110.0,103080.0,0.20678496]
[1733368806110,0.543966,103120.0,103080.0,0.20678196]
[1733368806331,0.19398,103110.0,103080.0,0.06127696]
[1733368806545,0.19398,103110.0,103080.0,0.20679296]
[1733368806789,0.387962,103110.0,103080.0,0.35230096]
[1733368807055,0.64363605,103120.0,103090.0,0.20724936]
[1733368807056,0.53792,103120.0,103090.0,0.20724936]
[1733368807285,0.15,103120.0,103110.0,0.145475]
[1733368807523,0.15,103120.0,103110.0,0.20628167]
[1733368807975,0.15,103120.0,103110.0,0.25600574]
[1733368808215,0.15,103120.0,103110.0,0.35600574]
[1733368808490,0.00017612,103130.0,103110.0,0.45600574]
[1733368808738,0.61665314,103180.0,103170.0,0.145391]
[1733368808957,0.5339,103180.0,103170.0,0.20337783]
[1733368809193,0.53407644,103180.0,103170.0,0.20337783]
[1733368810595,0.00017644,103180.0,103170.0,0.20337783]
[1733368810764,0.00017644,103180.0,103160.0,0.290789]
[1733368810765,0.5339,103170.0,103160.0,0.145405]
[1733368810991,0.5339,103170.0,103160.0,0.20386157]
[1733368813917,0.00017644,103180.0,103160.0,0.49466057]
[1733368814154,0.00017644,103180.0,103170.0,0.20311269]
[1733368815533,0.00017644,103180.0,103170.0,0.25250386]
[1733368816903,4.4e-07,103180.0,103170.0,0.53510386]
[1733368817129,1.65,103240.0,103230.0,0.154993]
[1733368817347,0.15058828,103240.0,103230.0,0.20966326]
[1733368819236,0.15058828,103240.0,103230.0,0.05467026]
[1733368819451,0.15058828,103240.0,103230.0,0.20966326]
[1733368820783,1.51048827,103250.0,103220.0,0.154997]
[1733368821030,1.51066464,103250.0,103230.0,0.154989]
[1733368821267,1.51066464,103250.0,103230.0,0.36464226]
[1733368821494,0.97676464,103250.0,103240.0,0.2094137]
[1733368823333,0.97672464,103250.0,103240.0,0.2094137]
[1733368824255,1.5,103240.0,103220.0,0.310003]
[1733368824476,1.59002464,103250.0,103230.0,0.20989786]
[1733368824699,1.78372964,103250.0,103220.0,0.309996]
[1733368824924,1.78372964,103250.0,103210.0,0.155017]
[1733368824925,0.5339,103230.0,103210.0,0.155017]
[1733368825162,1.5,103230.0,103210.0,0.155023]
[1733368825380,0.16554762,103240.0,103220.0,0.154997]
[1733368825603,0.5789,103240.0,103230.0,0.145306]
[1733368825832,0.5339,103220.0,103200.0,0.290676]
[1733368826057,0.5339,103220.0,103210.0,0.145334]
[1733368826291,0.5339,103220.0,103210.0,0.20117744]
[1733368826953,0.5339,103220.0,103200.0,0.145337]
[1733368827193,1.5,103210.0,103200.0,0.20118044]
[1733368827415,0.5339,103210.0,103190.0,0.290708]
[1733368827637,0.5339,103210.0,103200.0,0.20142615]
[1733368828554,0.5339,103210.0,103200.0,0.20201443]
[1733368828772,0.145,103240.0,103200.0,0.20201443]
[1733368828773,2.0789,103240.0,103220.0,0.14532]
[1733368828993,2.0789,103240.0,103220.0,0.20021586]
[1733368829207,2.0789,103240.0,103230.0,0.145306]
[1733368829435,2.0789,103240.0,103220.0,0.34552586]
[1733368829653,2.0789,103240.0,103230.0,0.20021086]
[1733368829932,0.045,103240.0,103220.0,0.14531]
[1733368830202,1.02732905,103230.0,103200.0,0.29127528]
[1733368830431,0.727661,103220.0,103200.0,0.14593628]
[1733368830886,0.5339,103220.0,103200.0,0.14593628]
[1733368831108,0.5339,103220.0,103200.0,0.00058828]
[1733368831109,0.727662,103220.0,103200.0,0.00058828]
[1733368831343,0.5339,103220.0,103200.0,0.05643172]
[1733368831582,0.5339,103220.0,103200.0,0.20176972]
[1733368831802,0.5339,103220.0,103200.0,0.05643172]
[1733368832017,0.5339,103220.0,103200.0,0.20176872]
[1733368832238,0.5339,103220.0,103210.0,0.05584344]
[1733368832746,2.227642,103230.0,103210.0,0.05584344]
[1733368832933,2.227642,103230.0,103200.0,0.14592428]
[1733368833144,0.5339,103220.0,103200.0,0.34687204]
[1733368833805,0.5339,103220.0,103200.0,0.20153304]
[1733368834266,0.5339,103220.0,103200.0,0.34688004]
[1733368834479,0.5339,103220.0,103200.0,0.20153304]
[1733368834700,0.727661,103220.0,103200.0,0.20153304]
[1733368834905,0.727661,103220.0,103200.0,0.00058828]
[1733368834906,0.52005505,103210.0,103200.0,0.00058828]
[1733368835126,0.387697,103180.0,103150.0,0.29541]
[1733368835338,0.17310674,103210.0,103160.0,0.057252]
[1733368835542,0.1,103230.0,103190.0,0.145352]
[1733368835755,0.1,103230.0,103200.0,0.05560876]
[1733368835972,0.32497605,103240.0,103200.0,0.20094776]
[1733368836176,0.51869905,103240.0,103210.0,0.145334]
[1733368836391,0.1253,103240.0,103220.0,0.20045947]
[1733368836613,0.1253,103240.0,103220.0,0.05513947]
[1733368836817,0.1253,103240.0,103210.0,0.29065]
[1733368837026,0.31961128,103240.0,103210.0,0.34578947]
[1733368837227,0.31961128,103240.0,103210.0,0.34578847]
[1733368837433,1.81961128,103240.0,103220.0,0.145319]
[1733368837654,0.12588828,103240.0,103220.0,0.20021686]
[1733368837936,0.193761,103220.0,103180.0,0.1]
[1733368838159,0.193761,103220.0,103150.0,0.421714]
[1733368838160,0.487613,103200.0,103170.0,0.1]
[1733368838383,0.193799,103200.0,103170.0,0.145378]
[1733368838588,0.387613,103200.0,103170.0,0.145378]
[1733368838813,0.193817,103190.0,103150.0,0.295408]
[1733368839021,0.5339,103190.0,103170.0,0.290779]
[1733368839237,0.5835,103210.0,103180.0,0.302617]
[1733368839458,0.0496,103210.0,103190.0,0.145362]
[1733368839665,0.0496,103210.0,103190.0,0.20167487]
[1733368839873,0.0496,103210.0,103190.0,0.34703687]
[1733368840095,0.15,103220.0,103200.0,0.30166087]
[1733368840319,0.15,103220.0,103190.0,0.1]
[1733368840523,0.5339,103210.0,103190.0,0.145349]
[1733368840738,0.6839,103220.0,103190.0,0.3907]
[1733368840942,0.15,103220.0,103210.0,0.145334]
[1733368841155,0.15,103220.0,103200.0,0.245346]
[1733368841410,0.15017638,103220.0,103210.0,0.145334]
[1733368841657,0.15017638,103220.0,103210.0,0.245334]
[1733368842761,0.15017638,103220.0,103200.0,0.1]
[1733368842976,0.15017638,103220.0,103200.0,0.390682]
[1733368843191,0.15017638,103220.0,103200.0,0.145335]
[1733368843413,0.15017638,103220.0,103200.0,0.245335]
[1733368843634,0.15017638,103220.0,103210.0,0.245334]
[1733368845229,0.00017638,103220.0,103210.0,0.703034]
[1733368845668,0.00017638,103220.0,103210.0,0.395334]
[1733368846102,0.00017638,103220.0,103210.0,0.595334]
[1733368846317,0.00017638,103220.0,103210.0,0.5839357]
[1733368846549,0.00017638,103220.0,103210.0,0.6839357]
[1733368846798,0.96672465,103250.0,103240.0,0.235606]
[1733368846999,0.96731246,103250.0,103240.0,0.235606]
[1733368847642,0.96731246,103250.0,103240.0,0.2862898]
[1733368847871,0.96731246,103250.0,103240.0,0.235606]
[1733368848717,0.96731246,103250.0,103240.0,0.435606]
[1733368848957,0.88983246,103250.0,103240.0,0.435606]
[1733368849204,0.76276246,103250.0,103240.0,0.435606]
[1733368849644,0.13,103320.0,103300.0,0.135523]
[1733368849848,0.13017643,103320.0,103310.0,0.135514]
[1733368850069,0.13017643,103320.0,103300.0,0.4081541]
[1733368850265,0.13017643,103320.0,103310.0,0.235514]
[1733368850901,0.49007642,103330.0,103310.0,0.371026]
[1733368851131,0.49007642,103330.0,103310.0,0.37119043]
[1733368851290,0.0154205,103340.0,103320.0,0.135501]
[1733368851490,0.02439142,103340.0,103320.0,0.135501]
[1733368851897,0.02439142,103340.0,103320.0,0.18617014]
[1733368852101,0.02439142,103340.0,103320.0,0.17613755]
[1733368852319,0.02439142,103340.0,103320.0,0.12546841]
[1733368852470,0.04648392,103340.0,103320.0,0.12546841]
[1733368852960,0.02439142,103340.0,103330.0,0.235488]
[1733368853171,0.0154205,103340.0,103330.0,0.235488]
[1733368856432,0.0154205,103340.0,103330.0,0.24801764]
[1733368856616,0.0154205,103340.0,103330.0,0.26243458]
[1733368856897,0.0154205,103340.0,103330.0,0.24801764]
[1733368857598,0.0154205,103340.0,103330.0,0.24898764]
[1733368859641,0.0154205,103340.0,103330.0,0.14898764]
[1733368859858,0.0154205,103340.0,103330.0,0.24898764]
[1733368860727,0.123,103330.0,103310.0,0.00017643]
[1733368860899,0.123,103330.0,103310.0,0.12600943]
[1733368861116,0.0154205,103340.0,103330.0,0.22581]
[1733368861541,0.0154205,103340.0,103330.0,0.22677777]
[1733368861723,0.0154205,103340.0,103330.0,0.27461815]
[1733368862183,0.123,103360.0,103350.0,0.225786]
[1733368862390,0.0771,103380.0,103360.0,0.225762]
[1733368862575,0.0771,103380.0,103360.0,0.22672949]
[1733368862749,0.0771,103380.0,103360.0,0.35249449]
[1733368863077,0.0771,103380.0,103370.0,0.125761]
[1733368863378,0.0493656,103390.0,103380.0,0.225749]
[1733368863596,0.0040533,103390.0,103380.0,0.2267163]
[1733368865309,0.0040533,103390.0,103380.0,0.1009673]
[1733368865526,0.3223953,103390.0,103380.0,0.0009673]
[1733368865984,0.5824,103390.0,103380.0,0.0009673]
[1733368866214,0.775842,103390.0,103380.0,0.0009673]
[1733368866802,0.8979345,103390.0,103380.0,0.0009673]
[1733368867016,0.875842,103390.0,103380.0,0.0009673]
[1733368867679,0.775842,103390.0,103380.0,0.0009673]
[1733368867889,0.81308453,103390.0,103380.0,0.0009673]
[1733368868109,0.79099203,103390.0,103380.0,0.0009673]
[1733368868627,0.775842,103390.0,103380.0,0.0009673]
[1733368869722,0.5339,103390.0,103380.0,0.0009673]
[1733368869992,0.5339,103390.0,103380.0,0.1009673]
[1733368870395,0.5239,103390.0,103380.0,0.1009673]
[1733368870608,0.41433476,103410.0,103380.0,0.26196413]
[1733368870829,0.02315948,103400.0,103390.0,0.225727]
[1733368871046,0.00908375,103410.0,103390.0,0.10096721]
[1733368871465,0.00908375,103410.0,103400.0,0.1]
[1733368871674,0.00017626,103410.0,103390.0,0.00096721]
[1733368871897,0.323023,103400.0,103390.0,0.00096721]
[1733368872164,0.423023,103400.0,103390.0,0.00096721]
[1733368872351,0.323023,103400.0,103390.0,0.00096721]
[1733368872585,0.4373007,103400.0,103390.0,0.00096721]
[1733368872805,0.52269905,103400.0,103390.0,0.00096721]
[1733368873013,0.193517,103350.0,103330.0,0.04784038]
[1733368873246,0.32311,103360.0,103330.0,0.1]
[1733368873473,0.32311,103360.0,103340.0,0.1]
[1733368873474,0.51662,103360.0,103340.0,0.1]
[1733368873683,0.193518,103350.0,103330.0,0.10097]
[1733368873892,0.193528,103350.0,103330.0,0.00097]
[1733368874088,0.387056,103350.0,103330.0,0.00097]
[1733368874326,0.1296,103360.0,103330.0,0.00097]
[1733368874530,0.1296,103360.0,103330.0,0.2273677]
[1733368874531,0.00895139,103350.0,103330.0,0.2273677]
[1733368874763,0.193518,103350.0,103330.0,0.0015577]
[1733368874978,0.193535,103340.0,103330.0,0.0015577]
[1733368876323,0.29321105,103340.0,103330.0,0.0015577]
[1733368876568,0.19366,103280.0,103260.0,0.1]
[1733368876784,0.19356,103280.0,103270.0,0.00017643]
[1733368876985,0.193647,103290.0,103270.0,0.00017643]
[1733368877196,0.387289,103290.0,103270.0,0.00017643]
[1733368877417,2.355517,103300.0,103270.0,0.23574243]
[1733368877623,0.1241,103330.0,103310.0,0.235504]
[1733368877837,0.1241,103330.0,103290.0,0.1]
[1733368877838,0.193586,103320.0,103290.0,0.1]
[1733368878043,0.317661,103330.0,103290.0,0.235532]
[1733368878262,0.193574,103320.0,103290.0,0.236502]
[1733368878470,0.1241,103330.0,103300.0,0.1]
[1733368878715,0.0468,103330.0,103300.0,0.23649005]
[1733368878924,0.0468,103330.0,103310.0,0.235513]
[1733368879135,0.0468,103330.0,103310.0,0.23648096]
[1733368879347,0.0468,103330.0,103310.0,0.13648096]
[1733368879572,0.0468,103330.0,103310.0,0.00106796]
[1733368880249,0.04595053,103330.0,103310.0,0.00106796]
[1733368880875,0.40585052,103350.0,103310.0,0.23658196]
[1733368881075,0.00899198,103340.0,103310.0,0.00106796]
[1733368881434,0.03067334,103340.0,103310.0,0.00106796]
[1733368881842,0.02359803,103330.0,103310.0,0.00106796]
[1733368882170,0.58522657,103320.0,103310.0,0.00106796]
[1733368882420,0.68522657,103320.0,103310.0,0.00106796]
[1733368882616,0.29366,103280.0,103220.0,0.23563]
[1733368882872,0.193717,103250.0,103220.0,0.1]
[1733368883101,0.193717,103250.0,103210.0,0.01235719]
[1733368883102,0.55737576,103240.0,103210.0,0.01235719]
[1733368883308,0.55737576,103240.0,103210.0,0.1]
[1733368883309,0.19376,103220.0,103210.0,0.1]
[1733368883519,0.15,103240.0,103200.0,0.1]
[1733368883736,0.19611256,103240.0,103210.0,0.00097]
[1733368883947,0.02519923,103230.0,103210.0,0.00097]
[1733368884143,0.17762525,103240.0,103210.0,0.00155781]
[1733368884811,0.2773013,103240.0,103210.0,0.00155781]
[1733368885052,1.7773013,103240.0,103210.0,0.00155781]
[1733368885276,2.28894525,103240.0,103210.0,0.00155781]
[1733368885497,0.68894525,103240.0,103210.0,0.13719976]
[1733368885953,0.1,103230.0,103210.0,0.00155776]
[1733368886403,2.2886213,103240.0,103210.0,0.00155776]
[1733368886663,0.1,103230.0,103210.0,0.00155776]
[1733368886894,2.2886213,103240.0,103210.0,0.27284576]
[1733368887112,0.78894525,103240.0,103210.0,0.13720076]
[1733368887315,0.68894525,103240.0,103210.0,0.23719376]
[1733368887543,0.68894525,103240.0,103220.0,0.135623]
[1733368887803,0.6839,103240.0,103210.0,0.135637]
[1733368888027,0.78357605,103240.0,103220.0,0.00097]
[1733368888260,0.68448672,103240.0,103220.0,0.136601]
[1733368888487,0.15058672,103240.0,103220.0,0.272223]
[1733368888671,0.15058672,103240.0,103220.0,0.272214]
[1733368888908,0.15058672,103240.0,103230.0,0.235619]
[1733368889121,0.15058672,103240.0,103230.0,0.23658771]
[1733368889781,0.11184272,103240.0,103230.0,0.33658771]
[1733368889985,7.2e-07,103240.0,103230.0,0.33658771]
[1733368890189,7.2e-07,103240.0,103230.0,0.41109302]
[1733368890396,7.2e-07,103240.0,103230.0,0.23658771]
[1733368891304,7.2e-07,103240.0,103230.0,0.13658771]
[1733368891776,7.2e-07,103240.0,103230.0,0.23658771]
[1733368892006,7.2e-07,103240.0,103230.0,0.00096871]
[1733368892219,0.14466739,103260.0,103240.0,0.135597]
[1733368892433,0.14466739,103260.0,103230.0,0.00096871]
[1733368892434,0.09967605,103250.0,103230.0,0.00096871]
[1733368892663,0.19967605,103250.0,103230.0,0.00096871]
[1733368892874,0.1,103240.0,103230.0,0.00096871]
[1733368893079,0.08058537,103240.0,103230.0,0.00096871]
[1733368893509,0.09967605,103240.0,103230.0,0.00096871]
[1733368893718,0.18026142,103240.0,103230.0,0.00096871]
[1733368893945,0.09967605,103240.0,103230.0,0.00096871]
[1733368894401,0.08058537,103240.0,103230.0,0.00096871]
[1733368894595,0.09967605,103240.0,103230.0,0.00096871]
[1733368894803,0.29339905,103240.0,103230.0,0.00096871]
[1733368895007,1.91589905,103240.0,103230.0,0.00096871]
[1733368895507,2.23753469,103240.0,103230.0,0.00096871]
[1733368895713,2.23753469,103240.0,103190.0,0.135663]
[1733368895714,0.08058537,103220.0,103190.0,0.135663]
[1733368895938,0.09967605,103210.0,103180.0,0.01429395]
[1733368896170,1.6264,103200.0,103180.0,0.01429395]
[1733368896382,1.91890605,103200.0,103180.0,0.01429395]
[1733368896586,1.72510605,103200.0,103180.0,0.01429395]
[1733368896796,1.91890405,103200.0,103180.0,0.01429395]
[1733368896998,1.72510605,103200.0,103180.0,0.01488067]
[1733368897798,1.91890605,103200.0,103180.0,0.01488067]
[1733368898044,1.72510605,103200.0,103180.0,0.01585067]
[1733368898460,0.20568813,103230.0,103180.0,0.11585067]
[1733368898668,0.24251018,103230.0,103200.0,0.125961]
[1733368898875,0.23057605,103230.0,103200.0,0.251922]
[1733368899081,0.1309,103230.0,103210.0,0.125946]
[1733368899308,0.1309,103230.0,103190.0,0.2]
[1733368899504,0.1309,103230.0,103200.0,0.251921]
[1733368899721,0.1309,103230.0,103200.0,0.12596]
[1733368899933,0.1309,103230.0,103200.0,0.251927]
[1733368900143,0.1309,103230.0,103210.0,0.125956]
[1733368900346,0.1309,103230.0,103200.0,0.251927]
[1733368900612,0.1309,103230.0,103200.0,0.12692699]
[1733368900823,0.2809,103230.0,103200.0,0.12692699]
[1733368901235,0.2809,103230.0,103200.0,0.25288599]
[1733368902568,0.2809,103230.0,103210.0,0.125955]
[1733368902813,0.15,103230.0,103220.0,0.125944]
[1733368903003,0.15,103230.0,103220.0,0.37219889]
[1733368903220,0.15,103230.0,103220.0,0.3269128]
[1733368904125,0.15,103230.0,103220.0,0.32749952]
[1733368904818,0.15,103230.0,103220.0,0.12749952]
[1733368905246,0.15,103230.0,103220.0,0.32749952]
[1733368905459,0.15,103230.0,103220.0,0.22749952]
[1733368905938,0.15,103230.0,103220.0,0.23957619]
[1733368906284,0.15,103230.0,103220.0,0.01363219]
[1733368906484,0.15,103230.0,103220.0,0.13957619]
[1733368906688,0.15,103230.0,103220.0,0.12749952]
[1733368907252,0.15,103230.0,103220.0,0.00155552]
[1733368907471,0.15,103230.0,103220.0,0.12749952]
[1733368907689,0.51931805,103230.0,103180.0,0.01429395]
[1733368907898,0.193809,103200.0,103180.0,0.01429395]
[1733368908107,0.38762,103200.0,103180.0,0.01429395]
[1733368908316,0.48727905,103200.0,103180.0,0.01526395]
[1733368908518,0.29347505,103200.0,103180.0,0.01526395]
[1733368908720,0.48728605,103200.0,103180.0,0.01526395]
[1733368908855,0.727686,103210.0,103180.0,0.01526395]
[1733368909214,0.82736705,103210.0,103180.0,0.01526395]